bitfinex-derivatives/quotes_ETHF0:USTF0_20250224
["timestamp","ask_amount","ask_price","bid_price","bid_amount"]
[1740435753092,1.1966085,2571.4,2571.3,7.78e-06]
[1740435753697,3.2078,2571.5,2570.4,3.2078]
[1740435753892,0.77809,2570.6,2570.5,40.8]
[1740435755095,0.77815,2570.4,2570.3,0.00583544]
[1740435755296,3.2078,2571.2,2570.3,3.21363544]
[1740435755494,0.77804,2570.8,2570.6,3.2078]
[1740435755694,0.77799,2571.0,2570.6,3.98588]
[1740435755994,0.00583544,2571.0,2570.6,3.2078]
[1740435756297,0.00583544,2571.0,2570.6,9.97687]
[1740435756497,0.00583544,2571.0,2570.6,9.1988]
[1740435756690,0.77806,2570.7,2570.6,9.1988]
[1740435756893,1.95079544,2571.0,2570.3,5.99583544]
[1740435757092,0.00583544,2571.0,2570.3,0.00583544]
[1740435757294,0.77815,2570.4,2570.3,0.00583544]
[1740435758402,0.77809,2570.6,2570.3,50.01363544]
[1740435758693,0.00583544,2571.0,2570.3,44.01363544]
[1740435758895,4.7577,2572.5,2570.7,3.2078]
[1740435759097,1.94341,2573.0,2572.1,3.2078]
[1740435759302,3.2078,2573.1,2572.5,3.2078]
[1740435759303,0.77747,2572.7,2572.5,3.2078]
[1740435759490,0.77755,2572.4,2572.2,9.1968]
[1740435759691,0.77757,2572.3,2572.2,2.33719]
[1740435759896,16.6506,2573.7,2571.4,3.2078]
[1740435759897,0.77781,2571.5,2571.4,3.2078]
[1740435760389,0.77787,2571.3,2571.2,5.44e-06]
[1740435760591,3.98567,2571.3,2571.2,5.44e-06]
[1740435761102,0.77787,2571.3,2571.2,5.44e-06]
[1740435761401,3.98567,2571.3,2571.2,5.44e-06]
[1740435761895,4.4041999,2571.3,2571.2,5.44e-06]
[1740435762091,10.4041999,2571.3,2571.2,5.44e-06]
[1740435762295,3.98567,2571.3,2571.2,5.44e-06]
[1740435762701,3.2078,2571.8,2571.2,5.44e-06]
[1740435762893,0.77786,2571.4,2571.2,3.20780544]
[1740435763092,1.94402,2572.2,2571.2,3.20780544]
[1740435763293,0.77772,2571.9,2571.5,3.2078]
[1740435763594,0.77777,2571.7,2571.5,3.2078]
[1740435764093,0.77778,2571.7,2571.5,3.2078]
[1740435764500,13.76269,2572.3,2571.5,3.2078]
[1740435764699,0.77776,2571.7,2571.5,3.2078]
[1740435764998,0.77776,2571.7,2571.2,0.77789544]
[1740435764999,0.77787,2571.3,2571.2,5.44e-06]
[1740435765610,0.77787,2571.3,2571.2,0.4755385]
[1740435765896,3.2078,2571.7,2571.2,0.4755385]
[1740435766099,0.77787,2571.3,2571.2,0.4755385]
[1740435768005,6.41920696,2571.3,2569.7,3.2078]
[1740435768193,3.2078,2570.9,2569.3,9.0985]
[1740435768499,0.41920696,2571.2,2569.0,8.83852865]
[1740435768500,3.2078,2570.3,2569.0,8.83852865]
[1740435768895,0.77848,2569.3,2569.0,8.83852865]
[1740435769096,0.77851,2569.2,2569.1,44.0078]
[1740435769301,0.00583544,2569.9,2569.1,44.0078]
[1740435769498,0.77843,2569.5,2569.1,44.0078]
[1740435769704,0.77843,2569.5,2569.4,3.2078]
[1740435769909,0.77839,2569.6,2569.4,3.2078]
[1740435770201,0.77842,2569.5,2569.4,3.2078]
[1740435770408,0.77851,2569.2,2569.1,3.2078]
[1740435770709,0.77851,2569.2,2569.1,44.0078]
[1740435771807,0.7785,2569.3,2569.1,40.8]
[1740435772104,0.00583544,2569.9,2569.1,44.0078]
[1740435772300,0.77839,2569.6,2569.4,3.2078]
[1740435772502,0.00583544,2569.9,2569.4,3.2078]
[1740435772704,0.77834,2569.8,2569.5,3.2078]
[1740435772901,0.00583544,2569.9,2569.5,3.2078]
[1740435773104,0.77839,2569.6,2569.5,3.2078]
[1740435773308,0.00583544,2569.9,2569.1,40.8]
[1740435773503,0.00583544,2569.9,2569.3,3.2078]
[1740435774007,1.94583,2569.8,2568.9,0.00583544]
[1740435774206,0.77857,2569.0,2568.9,5.44e-06]
[1740435774410,3.98637,2569.0,2568.9,5.44e-06]
[1740435774903,0.77857,2569.0,2568.9,5.44e-06]
[1740435778212,3.2078,2569.4,2568.9,5.44e-06]
[1740435778514,0.77857,2569.0,2568.9,5.44e-06]
[1740435780012,3.2078,2569.4,2568.9,5.44e-06]
[1740435780215,0.77857,2569.0,2568.9,5.44e-06]
[1740435780514,3.2078,2569.4,2568.9,40.80000544]
[1740435780705,3.98621,2569.6,2569.2,0.77851]
[1740435780907,0.77844,2569.5,2569.1,0.77853]
[1740435781105,0.00583544,2569.9,2569.0,3.2078]
[1740435781309,0.00583544,2569.9,2569.8,0.77833]
[1740435781504,3.2078,2570.7,2569.8,5.981]
[1740435781706,3.2078,2570.7,2570.0,3.2078]
[1740435781912,9.997,2571.7,2570.6,3.2078]
[1740435781913,0.77798,2571.0,2570.6,3.2078]
[1740435782117,9.997,2571.7,2570.9,3.2078]
[1740435782409,5.15224,2571.7,2570.9,3.2078]
[1740435782616,15.30450121,2571.2,2570.9,3.2078]
[1740435783009,14.52658121,2571.2,2570.8,0.00583544]
[1740435783407,14.52658121,2571.2,2570.9,5.98]
[1740435783606,0.77796,2571.0,2570.9,5.98]
[1740435783808,0.77796,2571.0,2570.8,0.00583544]
[1740435783809,3.21363544,2571.3,2570.8,0.00583544]
[1740435784004,3.98579,2570.9,2570.8,5.44e-06]
[1740435784210,3.98579,2570.9,2570.8,1.55590544]
[1740435784414,9.98579,2570.9,2570.8,5.44e-06]
[1740435784715,0.77824,2570.1,2569.3,3.2078]
[1740435784909,0.77824,2570.1,2569.1,5.978]
[1740435785112,9.89123,2570.1,2568.6,4.8152]
[1740435785306,0.77845,2569.5,2568.5,6.3224]
[1740435785520,0.00583544,2569.6,2569.4,0.77843]
[1740435785811,0.00583544,2569.6,2569.3,3.98626]
[1740435786011,0.00583544,2569.6,2569.1,0.00583544]
[1740435786414,0.77851,2569.2,2569.1,0.00583544]
[1740435786610,0.77869,2568.6,2567.9,0.77889]
[1740435786911,0.77869,2568.6,2567.8,0.77892]
[1740435787118,6.77869,2568.6,2567.7,3.2078]
[1740435787313,1.94681,2568.5,2567.7,3.2078]
[1740435787615,9.87002,2569.0,2567.7,3.2078]
[1740435787616,0.77876,2568.4,2567.7,3.2078]
[1740435787815,11.13124,2569.0,2567.8,0.00583544]
[1740435787816,0.77883,2568.2,2567.8,0.00583544]
[1740435788111,0.00583544,2568.3,2567.8,0.00583544]
[1740435788320,0.7789,2567.9,2567.8,0.00583544]
[1740435788518,3.2078,2568.2,2567.8,0.00583544]
[1740435788724,3.9867,2567.9,2567.8,0.00583544]
[1740435789013,0.7789,2567.9,2567.8,0.00583544]
[1740435790815,3.21363544,2568.3,2567.8,0.00583544]
[1740435791021,0.77884,2568.1,2567.8,0.00583544]
[1740435791318,0.00583544,2568.3,2568.1,0.77883]
[1740435791514,0.00583544,2568.3,2568.2,3.2078]
[1740435791711,3.2078,2569.4,2568.2,3.2078]
[1740435792017,3.89045,2570.6,2569.3,3.2078]
[1740435792018,3.2078,2570.4,2569.3,3.2078]
[1740435792217,3.2078,2571.0,2569.9,3.2078]
[1740435792515,3.2078,2571.0,2569.4,5.976]
[1740435792516,3.2078,2571.0,2569.8,46.776]
[1740435792726,3.2078,2571.0,2569.9,3.2078]
[1740435792913,3.2078,2571.0,2569.8,46.776]
[1740435792914,0.7783,2569.9,2569.4,3.2078]
[1740435793113,3.2078,2570.2,2569.0,5.975]
[1740435793513,0.77854,2569.1,2569.0,5.975]
[1740435793710,0.77845,2569.4,2569.3,0.00583544]
[1740435793914,3.98625,2569.4,2569.3,0.00583544]
[1740435794116,3.98625,2569.4,2569.3,5.44e-06]
[1740435794319,9.98625,2569.4,2569.3,5.44e-06]
[1740435795120,20.01035,2569.4,2569.3,5.44e-06]
[1740435795320,1.94648,2569.0,2567.7,3.505]
[1740435795619,1.94689,2568.4,2567.7,3.505]
[1740435795817,0.77892,2567.9,2567.7,3.505]
[1740435796017,3.2078,2568.5,2567.7,3.505]
[1740435796219,0.77862,2568.9,2568.2,3.2078]
[1740435796425,3.2078,2569.5,2568.4,3.2078]
[1740435796615,3.2078,2569.8,2568.7,0.77866]
[1740435796817,3.2078,2569.8,2568.7,3.2078]
[1740435797024,3.2078,2569.8,2569.0,3.2078]
[1740435797228,3.2078,2570.1,2569.4,3.2078]
[1740435797420,0.77835,2569.8,2569.4,3.2078]
[1740435797620,0.77828,2570.0,2569.4,3.98623]
[1740435797816,0.77828,2570.0,2569.4,3.2078]
[1740435798027,0.77834,2569.8,2569.4,3.2078]
[1740435798224,0.00583544,2569.9,2569.4,3.2078]
[1740435798429,0.77839,2569.6,2569.5,40.8]
[1740435798628,0.77837,2569.7,2569.5,40.8]
[1740435799031,0.77837,2569.7,2569.3,0.00583544]
[1740435799231,0.77839,2569.6,2569.3,0.00583544]
[1740435799536,0.00583544,2569.9,2569.3,0.00583544]
[1740435799725,0.77845,2569.5,2569.3,0.00583544]
[1740435800125,0.77845,2569.4,2569.3,0.00583544]
[1740435800838,0.77843,2569.5,2569.3,0.00583544]
[1740435801033,5.15941544,2569.9,2569.3,0.00583544]
[1740435801034,3.21363544,2569.9,2569.3,0.00583544]
[1740435801235,0.77845,2569.4,2569.3,0.00583544]
[1740435802542,3.21363544,2569.9,2569.3,0.00583544]
[1740435802935,0.77835,2569.8,2569.4,40.8]
[1740435803139,0.00583544,2569.9,2569.7,0.77834]
[1740435803330,0.00583544,2569.9,2569.7,3.98613]
[1740435803531,0.00583544,2569.9,2569.8,0.77833]
[1740435803732,0.77807,2570.7,2570.2,0.77818]
[1740435804043,1.9453,2570.5,2570.2,5.968]
[1740435804344,0.77818,2570.3,2570.2,5.968]
[1740435804743,3.2078,2570.9,2569.5,3.2078]
[1740435805044,0.77824,2570.1,2570.0,0.00583544]
[1740435805238,0.77824,2570.1,2570.0,5.44e-06]
[1740435807341,6.77824,2570.1,2570.0,5.44e-06]
[1740435807737,0.77884,2568.1,2568.0,3.2078]
[1740435808047,3.2078,2568.8,2567.7,2.5314]
[1740435808243,0.77893,2567.8,2567.7,2.5314]
[1740435808434,3.8928,2569.1,2567.7,2.5314]
[1740435808435,3.2078,2568.4,2567.7,2.5314]
[1740435808635,0.77893,2567.8,2567.7,2.5314]
[1740435808842,0.77893,2567.8,2567.7,0.9736]
[1740435809245,0.77896,2567.7,2567.6,40.8]
[1740435809742,0.77899,2567.6,2567.5,0.00583544]
[1740435810246,0.77899,2567.6,2567.5,40.80583544]
[1740435810635,5.15475,2568.4,2567.5,40.80583544]
[1740435810840,0.77898,2567.7,2567.5,40.80583544]
[1740435811345,3.2078,2568.4,2567.5,40.80583544]
[1740435811548,1.94694,2568.4,2567.7,3.2078]
[1740435811751,0.77899,2567.6,2567.5,40.80583544]
[1740435812045,1.94725,2568.0,2567.7,0.77881]
[1740435812346,0.77893,2567.8,2567.7,0.77881]
[1740435812542,0.77893,2567.8,2567.7,1.75241]
[1740435813345,3.98673,2567.8,2567.7,0.9668]
[1740435813546,0.77893,2567.8,2567.7,0.9668]
[1740435813746,3.98673,2567.8,2567.7,0.9668]
[1740435814143,0.77893,2567.8,2567.7,0.9668]
[1740435814649,0.77893,2567.9,2567.7,0.9668]
[1740435814844,0.77893,2567.8,2567.7,0.9668]
[1740435815938,3.98673,2567.8,2567.7,0.9668]
[1740435816543,0.77893,2567.8,2567.7,0.9668]
[1740435816850,0.77891,2567.9,2567.7,4.1746]
[1740435817147,5.15445,2568.8,2568.0,0.77886]
[1740435817450,1.94669,2568.7,2568.1,5.961]
[1740435817644,0.77876,2568.4,2568.1,5.961]
[1740435817848,0.77877,2568.4,2568.1,5.961]
[1740435818038,1.94653,2568.9,2568.1,5.961]
[1740435818247,7.55468,2569.5,2568.1,13.90806]
[1740435818446,1.94613,2569.4,2568.3,3.2078]
[1740435818645,3.2078,2569.7,2568.6,3.2078]
[1740435818841,3.2078,2569.7,2568.2,40.8]
[1740435818842,3.2078,2569.7,2568.3,3.2078]
[1740435819046,0.77875,2568.4,2568.3,5.961]
[1740435819345,1.94608,2569.5,2567.7,0.9668]
[1740435819346,1.94681,2568.5,2567.9,3.2078]
[1740435819652,1.94681,2568.5,2567.7,0.9668]
[1740435819653,0.77881,2568.2,2568.1,0.00583544]
[1740435819853,3.98661,2568.2,2568.1,5.44e-06]
[1740435820249,0.77881,2568.2,2568.1,5.44e-06]
[1740435821247,0.77893,2567.8,2567.7,0.9668]
[1740435821451,0.77893,2567.8,2567.3,2.5317]
[1740435821452,0.77906,2567.4,2567.3,2.5317]
[1740435822551,0.77901,2567.6,2567.3,2.5317]
[1740435822751,5.15502,2568.0,2567.3,2.5317]
[1740435822752,3.2078,2568.0,2567.3,2.5317]
[1740435822956,0.77899,2567.7,2567.3,5.7395]
[1740435823256,0.77896,2567.8,2567.3,5.7395]
[1740435823557,0.77897,2567.7,2567.3,5.7395]
[1740435823853,0.77901,2567.6,2567.3,5.7395]
[1740435824056,0.77903,2567.5,2567.3,2.5317]
[1740435824350,0.77906,2567.4,2567.3,2.5317]
[1740435825055,3.98686,2567.4,2567.3,2.5317]
[1740435825348,0.77898,2567.7,2567.3,2.5317]
[1740435825554,0.779,2567.6,2567.3,1.558]
[1740435826052,3.2078,2568.0,2567.3,1.558]
[1740435826252,3.2078,2568.0,2567.4,0.77903]
[1740435826551,0.77904,2567.5,2567.3,1.558]
[1740435826753,3.2078,2568.0,2567.3,1.558]
[1740435826952,1.94734,2567.8,2567.3,1.558]
[1740435827156,0.77906,2567.4,2567.3,1.558]
[1740435828059,0.77912,2567.2,2567.1,0.00583544]
[1740435828349,3.2078,2567.2,2565.9,9.1638]
[1740435828551,3.2078,2566.7,2566.0,40.8]
[1740435828759,0.77941,2566.3,2566.0,41.7742]
[1740435828954,3.2078,2566.7,2566.0,41.7742]
[1740435829356,0.00583544,2566.6,2566.1,0.00583544]
[1740435829550,0.77934,2566.5,2566.1,0.78525544]
[1740435829751,0.00583544,2566.6,2566.1,0.00583544]
[1740435830350,3.98677,2567.7,2566.5,3.98713]
[1740435830557,0.77899,2567.7,2567.0,0.77915]
[1740435830748,3.98669,2568.0,2567.5,3.2078]
[1740435830949,6.27203,2568.5,2567.6,40.8]
[1740435831156,3.2078,2568.9,2567.6,40.8]
[1740435831459,3.8927,2569.2,2567.6,40.8]
[1740435831460,1.94689,2568.4,2567.6,42.3578]
[1740435831655,0.77884,2568.1,2568.0,0.00583544]
[1740435831855,3.98664,2568.1,2568.0,0.00583544]
[1740435832258,9.98664,2568.1,2568.0,5.44e-06]
[1740435832954,3.98664,2568.1,2568.0,5.44e-06]
[1740435833463,0.77884,2568.1,2568.0,5.44e-06]
[1740435833859,9.98664,2568.1,2568.0,5.44e-06]
[1740435835160,3.98664,2568.1,2568.0,5.44e-06]
[1740435836154,9.98664,2568.1,2568.0,5.44e-06]
[1740435837069,3.98664,2568.1,2568.0,5.44e-06]
[1740435838071,0.77884,2568.1,2568.0,5.44e-06]
[1740435838271,0.00583544,2568.5,2568.0,5.44e-06]
[1740435838567,0.00583544,2568.5,2568.0,3.20780544]
[1740435838763,1.94689,2568.4,2568.0,5.44e-06]
[1740435838978,0.77884,2568.1,2568.0,5.44e-06]
[1740435839189,0.77884,2568.1,2568.0,40.80000544]
[1740435839583,0.77884,2568.1,2568.0,44.00780544]
[1740435839983,0.77884,2568.1,2568.0,5.44e-06]
[1740435843483,1.95270544,2568.5,2568.3,0.77878]
[1740435843484,0.00583544,2568.5,2568.3,0.77878]
[1740435843689,0.00583544,2568.5,2568.0,3.20780544]
[1740435843887,0.00583544,2568.5,2568.0,5.44e-06]
[1740435844285,0.00583544,2568.5,2568.2,3.2078]
[1740435844286,0.77876,2568.4,2568.2,3.2078]
[1740435844588,0.00583544,2568.5,2568.2,3.2078]
[1740435844791,3.2078,2569.1,2568.2,3.2078]
[1740435844988,0.77869,2568.6,2568.5,3.2078]
[1740435845683,3.89155,2569.9,2568.5,9.2078]
[1740435845684,3.2078,2569.4,2568.5,9.2078]
[1740435845995,0.00583544,2568.8,2568.7,0.77866]
[1740435846183,1.94595,2569.7,2568.7,3.2078]
[1740435846387,15.12793141,2570.1,2569.2,0.77849]
[1740435846388,0.7784,2569.6,2569.2,0.77849]
[1740435846583,11.23665141,2570.6,2569.3,3.2078]
[1740435846584,3.2078,2570.3,2569.3,3.2078]
[1740435846783,11.23665141,2570.6,2569.6,3.2078]
[1740435846784,14.44445141,2570.6,2569.6,3.2078]
[1740435846994,14.44445141,2570.6,2569.4,5.942]
[1740435846995,1.9457,2570.0,2569.4,5.942]
[1740435847191,3.89106,2570.2,2568.9,4.97464877]
[1740435847392,0.77842,2569.5,2569.4,0.00583544]
[1740435848092,0.77842,2569.5,2569.4,5.44e-06]
[1740435848297,0.77842,2569.5,2569.4,40.80000544]
[1740435848597,0.77842,2569.5,2569.4,5.44e-06]
[1740435849802,3.2078,2569.7,2569.1,0.72852544]
[1740435849991,0.77851,2569.2,2569.1,0.72852544]
[1740435850186,0.77851,2569.2,2569.1,5.44e-06]
[1740435850394,6.77851,2569.2,2569.1,5.44e-06]
[1740435850695,6.77851,2569.2,2567.6,0.189]
[1740435850696,0.77896,2567.7,2567.6,0.189]
[1740435850993,0.77896,2567.7,2567.6,1e-05]
[1740435851193,0.77896,2567.7,2566.3,15.16369623]
[1740435851194,0.77927,2566.7,2566.3,15.16369623]
[1740435851395,0.77927,2566.7,2566.3,14.87337951]
[1740435851902,0.77927,2566.7,2566.4,0.00583544]
[1740435852392,3.2078,2567.0,2566.4,0.00583544]
[1740435852600,3.98713,2566.5,2566.4,0.00583544]
[1740435852801,0.77933,2566.5,2566.4,0.00583544]
[1740435852996,3.2078,2566.7,2566.4,6.00583544]
[1740435853203,1.94736,2567.8,2566.6,3.2078]
[1740435853493,3.21363544,2567.9,2566.9,3.2078]
[1740435853995,0.78474544,2567.9,2567.0,1.5582]
[1740435854302,3.2078,2569.0,2567.5,3.2078]
[1740435854600,0.77872,2568.5,2568.1,3.2078]
[1740435854794,0.77867,2568.7,2568.1,3.2078]
[1740435854990,0.77871,2568.6,2568.1,3.2078]
[1740435855296,0.77871,2568.6,2567.6,5.936]
[1740435855297,3.2078,2569.0,2568.2,5.935]
[1740435855604,0.00583544,2568.6,2568.2,5.935]
[1740435855995,0.78453544,2568.6,2568.2,5.935]
[1740435856397,0.00583544,2568.6,2568.2,5.935]
[1740435856603,0.00583544,2568.6,2568.5,0.77872]
[1740435856900,0.77844,2569.5,2568.9,0.77859]
[1740435857098,3.2078,2570.3,2569.1,3.2078]
[1740435857500,0.77824,2570.1,2569.6,0.77837]
[1740435857795,3.2078,2570.6,2569.8,0.77832]
[1740435857996,0.00582456,2570.1,2569.9,5.933]
[1740435858398,3.2078,2571.0,2569.9,52.733]
[1740435858595,14.44445141,2571.3,2570.2,3.2078]
[1740435858798,14.44445141,2571.3,2569.9,46.733]
[1740435858799,3.2078,2571.1,2569.9,40.8]
[1740435858995,0.77827,2570.0,2569.9,40.8]
[1740435859196,1.94569,2570.0,2569.6,0.97873544]
[1740435859401,0.77836,2569.7,2569.6,0.97873544]
[1740435860200,3.2078,2570.1,2569.6,47.77873544]
[1740435860396,0.77822,2570.2,2569.6,41.77873544]
[1740435860608,3.2078,2570.9,2569.8,3.2078]
[1740435860808,0.77826,2570.1,2569.9,5.93]
[1740435861008,0.179,2571.1,2570.1,0.77822]
[1740435861303,3.2078,2571.2,2570.7,3.2078]
[1740435861505,3.2078,2571.4,2570.3,3.2078]
[1740435861808,3.2078,2571.1,2570.3,3.2078]
[1740435862005,0.77821,2570.2,2570.1,5.929]
[1740435862508,0.77821,2570.2,2570.1,11.929]
[1740435862710,1.94507,2570.8,2570.1,11.929]
[1740435862711,0.77803,2570.8,2570.1,11.929]
[1740435862911,3.2078,2570.9,2570.1,5.929]
[1740435863206,0.77813,2570.5,2570.1,9.1368]
[1740435863604,3.2078,2570.9,2570.1,9.1368]
[1740435864113,0.77815,2570.4,2570.1,9.1368]
[1740435864306,3.2078,2570.9,2570.3,0.77817]
[1740435864606,3.2078,2570.9,2570.4,3.2078]
[1740435864999,0.77805,2570.8,2570.4,3.2078]
[1740435865205,3.2078,2570.9,2570.4,3.2078]
[1740435865505,3.88882,2571.7,2570.4,3.2078]
[1740435865816,3.2078,2571.6,2570.4,3.2078]
[1740435866013,3.88882,2571.7,2570.4,3.2078]
[1740435866014,0.77812,2570.5,2570.4,3.2078]
[1740435866211,0.77811,2570.6,2570.4,3.2078]
[1740435866405,0.77812,2570.5,2570.4,3.2078]
[1740435866807,0.77807,2570.7,2570.4,3.2078]
[1740435867007,3.2078,2571.0,2570.4,3.2078]
[1740435867208,1.9447,2571.3,2570.4,3.2078]
[1740435867415,3.2078,2571.5,2570.4,3.2078]
[1740435867609,1.94477,2571.2,2570.4,3.2078]
[1740435867811,0.77804,2570.8,2570.4,3.2078]
[1740435868315,0.77803,2570.8,2570.7,3.2078]
[1740435869015,0.77812,2570.5,2570.4,3.2078]
[1740435869509,0.77812,2570.5,2570.4,9.2078]
[1740435869817,0.77812,2570.5,2570.4,3.2078]
[1740435870013,1.94484,2571.1,2570.4,9.2078]
[1740435870211,1.94484,2571.1,2570.4,3.2078]
[1740435870415,1.94503,2570.9,2570.4,3.2078]
[1740435871315,0.77811,2570.6,2570.4,3.2078]
[1740435871616,1.94484,2571.1,2570.4,3.2078]
[1740435871617,0.77807,2570.7,2570.4,3.2078]
[1740435872114,0.77803,2570.8,2570.5,0.77811]
[1740435872318,0.77804,2570.8,2570.4,3.98593]
[1740435872617,3.2078,2571.2,2570.4,9.2078]
[1740435872810,5.15259,2571.2,2570.4,3.2078]
[1740435873010,0.77806,2570.7,2570.4,3.2078]
[1740435873516,3.2078,2571.2,2570.6,0.77808]
[1740435873820,1.94466,2571.4,2570.4,3.2078]
[1740435874014,3.2078,2571.6,2570.7,3.2078]
[1740435874015,3.88894,2571.6,2570.7,3.2078]
[1740435874217,0.77802,2570.9,2570.7,3.2078]
[1740435874417,0.77803,2570.8,2570.7,3.2078]
[1740435875212,1.94478,2571.2,2570.7,3.2078]
[1740435875421,0.77803,2570.8,2570.7,3.2078]
[1740435878119,3.2078,2571.2,2570.7,3.2078]
[1740435880425,3.2078,2571.5,2570.7,3.2078]
[1740435880628,3.2078,2571.5,2571.0,3.2078]
[1740435880918,3.2078,2571.5,2571.1,46.71]
[1740435882120,1.94462,2571.4,2571.1,46.71]
[1740435882425,1.94462,2571.4,2571.1,5.91]
[1740435882426,0.7779,2571.2,2571.1,5.91]
[1740435882816,0.77789,2571.3,2571.1,9.1178]
[1740435883019,1.94402,2572.2,2571.2,40.8]
[1740435883214,5.6311,2572.4,2571.4,3.2078]
[1740435883421,0.77781,2571.5,2571.4,3.2078]
[1740435883718,5.15177,2572.3,2571.4,3.2078]
[1740435883914,0.77773,2571.8,2571.7,3.2078]
[1740435884226,1.9441,2572.1,2571.5,1.5555]
[1740435884421,0.77778,2571.6,2571.5,1.5555]
[1740435884724,12.72668,2572.4,2571.6,0.77778]
[1740435884725,5.1517,2572.4,2571.6,0.77778]
[1740435884921,5.1517,2572.4,2571.8,3.2078]
[1740435884922,5.15169,2572.4,2571.8,3.2078]
[1740435885120,0.77766,2572.0,2571.9,5.905]
[1740435885315,5.15146,2572.7,2571.9,5.905]
[1740435885822,6.64845,2572.9,2572.1,3.2078]
[1740435886124,11.23665141,2574.2,2572.1,3.2078]
[1740435886125,3.2078,2574.1,2572.1,7.1038]
[1740435886318,3.2078,2574.1,2572.0,9.56261598]
[1740435886319,0.77696,2574.4,2573.6,0.77716]
[1740435886518,0.77696,2574.4,2572.9,1.94347]
[1740435886519,0.77712,2573.8,2573.7,5.904]
[1740435886820,3.2078,2574.5,2573.7,5.90983544]
[1740435887014,3.2078,2574.5,2573.8,3.2078]
[1740435887214,13.17863141,2574.9,2573.7,5.90983544]
[1740435887215,0.77712,2573.8,2573.7,5.90983544]
[1740435887422,0.77712,2573.8,2573.7,46.70983544]
[1740435887628,0.7771,2573.9,2573.7,46.70983544]
[1740435887829,0.77712,2573.8,2573.7,46.70983544]
[1740435888225,3.2078,2574.4,2573.7,46.70983544]
[1740435888427,0.77708,2574.0,2573.7,46.70983544]
[1740435888625,1.9422,2574.6,2573.8,3.2078]
[1740435888927,5.14998,2574.7,2573.7,46.70983544]
[1740435889121,0.77712,2573.8,2573.7,46.70983544]
[1740435889324,0.77712,2573.9,2573.7,46.70983544]
[1740435889520,0.77712,2573.8,2573.7,46.70983544]
[1740435889721,0.77712,2573.8,2573.7,5.90983544]
[1740435889924,0.77712,2573.8,2573.7,5.44e-06]
[1740435890127,3.98492,2573.8,2573.7,5.44e-06]
[1740435891132,0.77718,2573.6,2573.5,5.44e-06]
[1740435891333,3.98498,2573.6,2573.5,5.44e-06]
[1740435892034,0.77718,2573.6,2573.5,5.44e-06]
[1740435892231,3.98498,2573.6,2573.5,5.44e-06]
[1740435892631,0.77718,2573.6,2573.5,5.44e-06]
[1740435893033,0.00583,2574.0,2573.5,5.44e-06]
[1740435893233,0.77716,2573.7,2573.5,5.44e-06]
[1740435893536,0.77717,2573.7,2573.5,5.44e-06]
[1740435893737,0.77718,2573.6,2573.5,5.44e-06]
[1740435894038,3.2078,2573.8,2573.5,5.44e-06]
[1740435894237,0.00583,2574.0,2573.9,0.77709]
[1740435894531,3.2078,2575.9,2574.0,3.49470738]
[1740435894731,3.2078,2575.9,2574.9,3.2078]
[1740435894938,3.2078,2575.9,2575.0,46.693]
[1740435895125,1.94078,2576.5,2575.3,3.2078]
[1740435895329,3.2078,2576.6,2575.3,3.2078]
[1740435895629,3.2078,2576.6,2575.4,5.85075998]
[1740435895833,3.2078,2576.6,2575.7,0.00582377]
[1740435896127,0.77638,2576.3,2576.0,3.2078]
[1740435896327,3.2078,2576.6,2575.8,5.89]
[1740435897533,3.2078,2577.8,2576.1,3.2078]
[1740435897833,3.2078,2577.5,2576.4,3.2078]
[1740435898035,0.77617,2577.0,2576.4,3.98412]
[1740435898231,0.77626,2576.7,2576.5,4.96875092]
[1740435898426,5.14811,2577.2,2576.6,5.889]
[1740435898633,0.77624,2576.7,2576.6,5.889]
[1740435899034,0.77624,2576.7,2576.6,46.689]
[1740435899234,0.77624,2576.7,2576.6,46.686]
[1740435899437,0.77624,2576.7,2576.6,5.886]
[1740435899636,1.94039,2577.0,2576.6,5.885]
[1740435899941,0.77624,2576.7,2576.6,5.885]
[1740435900537,3.2078,2577.2,2576.6,5.885]
[1740435900735,0.77624,2576.7,2576.6,5.885]
[1740435901538,3.2078,2577.5,2576.6,5.885]
[1740435901839,1.94028,2577.2,2576.7,5.882]
[1740435902036,0.77621,2576.8,2576.7,5.882]
[1740435902635,0.77633,2576.4,2576.3,0.00582377]
[1740435902830,3.87976,2577.7,2576.3,5.88682377]
[1740435902831,3.2078,2576.7,2576.3,5.88682377]
[1740435903134,0.77633,2576.4,2576.3,5.88682377]
[1740435903336,0.77629,2576.6,2576.3,5.88682377]
[1740435903541,3.2078,2577.1,2576.3,5.88682377]
[1740435904043,1.94029,2577.2,2576.3,5.88682377]
[1740435904044,1.94024,2577.2,2576.3,5.88682377]
[1740435904334,0.77625,2576.7,2576.3,5.88682377]
[1740435904539,1.94024,2577.2,2576.3,6.66317377]
[1740435904739,3.2078,2577.4,2576.3,5.88682377]
[1740435905047,0.77614,2577.1,2576.8,3.2078]
[1740435905236,3.2078,2577.7,2576.8,3.2078]
[1740435905437,3.2078,2577.7,2576.9,4.93910291]
[1740435905637,3.2078,2578.1,2577.1,3.2078]
[1740435905940,3.2078,2578.5,2577.4,3.2078]
[1740435906141,3.2078,2578.4,2577.2,10.97393564]
[1740435906445,0.77591,2577.8,2577.7,0.00582377]
[1740435907041,1.93949,2578.2,2577.7,0.00582377]
[1740435907239,3.2078,2578.0,2577.5,0.77574]
[1740435907434,0.77627,2576.6,2576.5,3.2078]
[1740435907635,0.77626,2576.7,2576.5,3.2078]
[1740435908037,0.77623,2576.8,2576.5,3.2078]
[1740435908241,0.77624,2576.8,2576.5,3.2078]
[1740435908444,0.00579032,2576.9,2576.5,3.2078]
[1740435908839,5.7709,2577.8,2576.8,3.2078]
[1740435909145,3.2078,2578.1,2577.1,3.2078]
[1740435909337,0.77593,2577.8,2577.4,3.2078]